bitfinex/quotes_ETHUSD_20241123
["timestamp","ask_amount","ask_price","bid_price","bid_amount"]
[1732373711906,0.56812505,3478.4,3477.5,0.3938]
[1732373713965,1.5456,3479.4,3477.8,0.55]
[1732373714120,0.03106685,3479.4,3477.9,0.3938]
[1732373714314,1.51308634,3479.6,3478.0,0.42254706]
[1732373714515,0.58454419,3478.6,3478.3,0.55]
[1732373714882,0.58454419,3478.6,3478.5,0.3938]
[1732373715942,0.02875062,3479.5,3478.5,0.3938]
[1732373716237,1.49774348,3479.7,3478.5,0.3938]
[1732373716437,1.44590569,3479.8,3478.6,0.02874197]
[1732373716627,1.50572316,3479.8,3478.7,0.3938]
[1732373717237,0.05981747,3479.8,3478.7,0.3938]
[1732373717521,0.03106685,3479.1,3477.6,0.3938]
[1732373717723,0.05981747,3479.1,3477.6,0.3938]
[1732373718251,0.03106685,3478.9,3477.6,0.3938]
[1732373718412,1.69106685,3478.6,3477.6,0.3938]
[1732373718615,0.03106685,3478.3,3476.7,0.3938]
[1732373718847,0.03106685,3478.1,3476.9,0.3938]
[1732373719049,0.03106685,3477.8,3476.9,0.3938]
[1732373719357,0.03106685,3478.4,3476.9,0.3938]
[1732373719527,0.03106685,3478.2,3476.9,0.3938]
[1732373719725,0.02875062,3478.1,3476.9,0.3938]
[1732373719951,0.03106685,3477.8,3476.9,0.3938]
[1732373720141,0.03106685,3478.4,3476.9,0.3938]
[1732373720354,0.03106685,3477.8,3476.9,0.3938]
[1732373720719,1.43282,3478.8,3477.1,0.3938]
[1732373721026,1.43282,3478.8,3477.3,0.3938]
[1732373721258,1.46388685,3478.8,3477.4,0.5787511]
[1732373721562,1.46388685,3478.8,3477.4,0.55]
[1732373721780,1.43282,3478.8,3477.4,0.55]
[1732373721953,1.52258625,3478.7,3477.4,0.55]
[1732373723251,1.47725535,3479.1,3477.7,0.3938]
[1732373723591,1.43641438,3479.5,3477.9,0.3938]
[1732373723776,0.02875062,3480.9,3478.1,0.55]
[1732373723777,0.03106685,3479.8,3478.1,0.55]
[1732373724093,0.57244874,3478.9,3478.3,0.3938]
[1732373725557,0.60351559,3478.9,3478.3,0.3938]
[1732373725771,0.02875062,3478.8,3478.3,0.3938]
[1732373726794,0.03106685,3478.4,3477.4,0.3938]
[1732373726997,0.02875062,3478.3,3477.4,0.3938]
[1732373727881,0.03106685,3478.2,3477.4,0.3938]
[1732373729082,0.5721043,3477.5,3477.4,0.3938]
[1732373729683,0.03106685,3478.4,3477.4,0.3938]
[1732373729902,0.05981747,3478.6,3477.4,0.3938]
[1732373730181,0.57471792,3477.7,3477.4,0.3938]
[1732373730377,0.05981747,3478.6,3477.4,0.3938]
[1732373730768,0.03106685,3478.6,3477.4,0.3938]
[1732373730968,0.03106685,3478.8,3477.4,0.3938]
[1732373731200,0.02875062,3478.8,3477.4,0.3938]
[1732373731506,0.57977089,3477.9,3477.6,0.3938]
[1732373735169,0.57977089,3477.9,3476.8,0.3938]
[1732373735370,0.03106685,3477.7,3476.8,0.3938]
[1732373735686,0.02875062,3477.6,3476.8,0.3938]
[1732373736520,0.58076706,3477.6,3476.8,0.3938]
[1732373736818,0.57230627,3476.9,3476.8,0.3938]
[1732373737280,0.57230627,3476.9,3476.6,0.18697127]
[1732373737620,0.02875062,3476.8,3474.4,0.02876144]
[1732373737791,0.02875062,3476.8,3474.5,0.21225262]
[1732373738121,0.02875062,3476.8,3474.6,0.24101927]
[1732373738305,0.02875062,3476.8,3474.7,0.24102149]
[1732373738505,0.02875062,3476.8,3474.8,0.21225262]
[1732373738819,0.57931905,3476.3,3474.9,0.24074049]
[1732373738985,0.02875062,3476.2,3474.0,0.02876809]
[1732373739185,0.02875062,3476.2,3474.1,0.21188928]
[1732373739385,0.02875062,3476.2,3474.2,0.24066264]
[1732373739584,0.02875062,3476.2,3474.2,0.02877336]
[1732373739827,0.02875062,3476.2,3473.3,0.03405746]
[1732373739984,0.02875062,3476.2,3473.4,0.21194106]
[1732373740182,0.02875062,3476.2,3473.5,0.24071562]
[1732373740407,0.02875062,3476.2,3473.8,3.017]
[1732373740684,1.6468,3476.3,3474.3,3.017]
[1732373740885,0.57960613,3476.0,3474.7,0.313]
[1732373741108,1.6468,3476.7,3475.0,0.55]
[1732373741308,0.02875062,3476.6,3475.3,0.55]
[1732373741510,0.02875062,3476.6,3475.3,0.57876648]
[1732373741821,0.56347246,3476.1,3475.3,0.57876648]
[1732373742022,0.56347246,3476.1,3475.3,0.55]
[1732373742226,0.56347246,3476.1,3475.2,0.313]
[1732373744195,0.56347246,3476.1,3475.3,0.57876814]
[1732373745950,0.57066159,3476.8,3475.5,0.55]
[1732373746094,1.5078,3477.1,3475.7,0.55]
[1732373746303,1.5078,3477.1,3476.0,0.313]
[1732373746723,0.02875062,3477.0,3476.0,0.313]
[1732373748062,0.56451866,3476.5,3476.0,0.313]
[1732373748344,0.51451866,3476.5,3476.0,0.313]
[1732373750940,0.51451866,3476.5,3476.1,0.55]
[1732373751253,0.51451866,3476.5,3476.3,0.55]
[1732373751413,0.51451866,3476.5,3476.2,0.34176111]
[1732373751414,0.51451866,3476.5,3476.4,0.69417611]
[1732373751609,0.51451866,3476.5,3476.4,0.55]
[1732373751927,0.51451866,3476.5,3476.2,0.313]
[1732373752121,0.51451866,3476.5,3474.9,0.02876056]
[1732373752122,1.5807,3476.4,3475.4,0.313]
[1732373752326,0.02875062,3476.3,3474.9,0.313]
[1732373752756,1.5807,3475.9,3474.9,0.313]
[1732373752965,0.05981747,3475.8,3474.4,0.313]
[1732373753315,0.56821412,3475.5,3474.4,0.313]
[1732373753830,0.56821412,3475.5,3474.5,0.02877515]
[1732373754149,0.56821412,3475.5,3474.4,0.313]
[1732373755015,0.56821412,3475.5,3474.5,0.02877519]
[1732373755348,0.56821412,3475.5,3474.5,0.57877519]
[1732373755653,0.56821412,3475.5,3474.7,0.55]
[1732373755819,0.56821412,3475.5,3475.0,0.55]
[1732373756947,1.5807,3476.7,3475.2,0.313]
[1732373757265,1.5807,3476.7,3475.5,0.55]
[1732373757461,0.57272695,3476.2,3475.7,0.55]
[1732373758055,0.57272695,3476.2,3475.5,0.02876511]
[1732373758257,0.57272695,3476.2,3475.2,0.313]
[1732373760168,0.57272695,3476.2,3475.3,0.57876821]
[1732373761443,1.5807,3476.1,3475.3,0.57876821]
[1732373761847,1.5807,3476.1,3475.4,0.39087682]
[1732373762230,0.57272695,3476.2,3475.4,0.39087682]
[1732373762596,0.57272695,3476.2,3475.5,0.55]
[1732373762749,0.57272695,3476.2,3475.9,0.55]
[1732373763888,0.57272695,3476.2,3475.9,3.567]
[1732373764049,0.57272695,3476.2,3476.0,0.39087624]
[1732373764253,0.57272695,3476.2,3476.1,0.55]
[1732373766594,0.57272695,3476.2,3476.0,0.39087624]
[1732373766763,0.57272695,3476.2,3475.8,0.313]
[1732373767177,0.57272695,3476.2,3474.5,0.0287655]
[1732373767178,0.57272695,3476.2,3474.6,0.313]
[1732373767373,0.57272695,3476.2,3474.8,0.313]
[1732373767582,0.57272695,3476.2,3474.9,0.24104053]
[1732373767583,0.02875062,3476.1,3474.9,0.24104053]
[1732373767762,0.02875062,3476.1,3475.0,0.21227129]
[1732373768076,1.6162,3476.0,3474.8,0.313]
[1732373768388,0.02875062,3475.9,3474.8,0.313]
[1732373768889,0.02875062,3475.9,3474.3,0.34177309]
[1732373769091,1.6162,3475.8,3474.3,0.34177309]
[1732373769294,0.02875062,3475.7,3474.3,0.34177309]
[1732373769480,1.6162,3475.6,3474.3,0.02877309]
[1732373769687,0.02875062,3475.5,3473.9,3.35877539]
[1732373769982,0.02875062,3475.5,3474.0,0.58447414]
[1732373770179,1.6162,3475.4,3473.9,0.34177539]
[1732373770384,0.02875062,3475.3,3473.9,0.34177539]
[1732373770583,1.6162,3475.4,3473.9,0.34177539]
[1732373770891,1.64495062,3475.3,3473.9,0.34177539]
[1732373771396,1.64495062,3475.3,3474.0,0.55]
[1732373771758,1.64495062,3475.3,3474.1,0.02877862]
[1732373771759,0.56728341,3474.7,3474.1,0.02877862]
[1732373772601,1.6162,3475.3,3474.1,0.02877862]
[1732373773001,0.02875062,3475.2,3474.0,0.57877738]
[1732373773663,0.02875062,3475.2,3473.8,0.35965508]
[1732373773664,0.58000826,3474.8,3473.8,0.35965508]
[1732373774269,0.58000826,3474.8,3473.9,0.02878136]
[1732373775181,1.6162,3475.1,3473.9,0.57878136]
[1732373776272,0.57759491,3474.9,3473.9,0.57878136]
[1732373776892,0.57759491,3474.9,3473.8,0.38843182]
[1732373777206,0.57759491,3474.9,3473.9,0.55]
[1732373777710,0.57759491,3474.9,3474.0,0.02877975]
[1732373779706,1.6162,3475.8,3474.2,0.55]
[1732373779896,1.6162,3475.8,3474.4,0.55]
[1732373780072,1.6162,3475.8,3474.5,0.02877169]
[1732373780819,0.5835687,3475.2,3474.5,0.02877169]
[1732373781101,0.5835687,3475.2,3474.2,0.57877307]
[1732373781102,1.6162,3475.1,3474.2,0.57877307]
[1732373781875,0.5835687,3475.2,3474.2,0.57877307]
[1732373782066,0.5835687,3475.2,3473.8,3.37665508]
[1732373782067,1.64495062,3475.1,3473.9,0.02877567]
[1732373782486,1.64495062,3475.1,3473.8,0.35965508]
[1732373782918,1.6162,3475.1,3473.8,0.35965508]
[1732373783475,0.57707502,3474.7,3473.8,0.35965508]
[1732373783802,0.57707502,3474.7,3472.7,0.01]
[1732373783803,1.606,3474.3,3472.7,0.01]
[1732373783979,1.66581747,3474.2,3472.7,0.01]
[1732373784400,0.58603974,3473.9,3472.8,0.02878959]
[1732373784679,0.58603974,3473.9,3472.7,0.0387871]
[1732373784988,1.606,3473.7,3472.7,0.01]
[1732373786043,1.606,3473.7,3472.8,0.028789]
[1732373786617,1.606,3473.7,3472.7,0.01]
[1732373787059,0.02875062,3473.6,3472.7,0.01]
[1732373787425,1.606,3473.5,3472.7,0.01]
[1732373788731,0.02875062,3473.8,3472.9,0.313]
[1732373788732,1.5217,3473.8,3472.9,0.313]
[1732373789554,0.57005181,3474.3,3473.0,0.57878788]
[1732373789762,1.5217,3474.6,3473.0,0.57878788]
[1732373789932,0.58285072,3474.1,3473.0,0.57878788]
[1732373791128,2.07609166,3474.6,3473.4,0.313]
[1732373791329,0.56152551,3474.3,3473.5,0.55]
[1732373794031,1.5217,3474.0,3472.7,0.323]
[1732373794259,1.5217,3474.0,3472.7,0.01]
[1732373794260,0.02875062,3473.9,3472.7,0.01]
[1732373794632,1.5217,3473.4,3472.7,0.01]
[1732373795977,2.08510693,3473.4,3472.7,0.01]
[1732373796480,5.66517606,3473.4,3472.7,0.01]
[1732373796944,3.0,3473.3,3472.7,0.01]
[1732373797144,1.5217,3473.1,3472.7,0.01]
[1732373797877,1.55276685,3473.1,3472.7,0.01]
[1732373798373,0.02875062,3473.0,3472.7,0.01]
[1732373799130,1.58151747,3473.1,3472.7,0.01]
[1732373799368,1.55276685,3473.1,3472.7,0.01]
[1732373800485,0.56380299,3472.8,3472.7,0.01]
[1732373800799,1.5217,3473.6,3472.7,0.01]
[1732373801008,0.58444395,3473.2,3472.7,0.01]
[1732373801365,2.87894,3473.5,3472.7,0.01]
[1732373801868,3.0,3473.4,3472.7,0.01]
[1732373802084,2.87922,3473.2,3472.7,0.01]
[1732373802466,2.87928,3473.1,3472.7,0.01]
[1732373803181,2.87952,3472.8,3472.7,0.01]
[1732373803680,2.87945,3472.9,3472.7,0.01]
[1732373803915,0.56754021,3473.3,3472.7,0.01]
[1732373804062,1.5217,3473.6,3472.7,0.323]
[1732373804408,0.03106685,3474.3,3472.8,0.55]
[1732373804409,2.87901,3473.5,3472.8,0.55]
[1732373804565,2.87918,3473.3,3472.7,0.323]
[1732373804967,0.02875062,3473.3,3472.7,0.01]
[1732373805285,0.02875062,3473.3,3472.2,0.005]
[1732373805286,5.75886,3472.9,3472.2,0.005]
[1732373805493,2.87979,3472.5,3472.2,0.005]
[1732373806772,3.44890007,3472.8,3472.2,0.005]
[1732373807989,0.56938007,3472.8,3472.2,0.005]
[1732373808193,5.87929,3473.1,3472.2,0.005]
[1732373808398,3.42935097,3473.1,3472.2,0.005]
[1732373808621,2.90812062,3473.0,3472.2,0.005]
[1732373808832,3.0,3473.2,3472.2,0.318]
[1732373809042,3.4635424,3473.0,3472.2,0.318]
[1732373809196,0.02875062,3472.9,3472.2,0.318]
[1732373809397,2.90821062,3472.9,3472.2,0.318]
[1732373809720,0.02875062,3472.9,3472.2,0.318]
[1732373809928,3.4634824,3473.0,3472.2,0.318]
[1732373810303,0.5841124,3473.0,3472.2,0.318]
[1732373810691,3.0,3472.9,3472.2,0.318]
[1732373810898,0.02875062,3472.8,3472.2,0.318]
[1732373811255,2.87952,3472.8,3472.2,0.318]
[1732373811538,2.87952,3472.8,3472.2,0.005]
[1732373811731,2.87962,3472.7,3472.2,0.005]
[1732373811892,3.5841124,3473.0,3472.2,0.005]
[1732373812333,0.02875062,3472.9,3472.2,0.005]
[1732373812536,2.87952,3472.8,3472.2,0.005]
[1732373812735,2.87991,3472.4,3472.2,0.005]
[1732373812937,2.90857062,3472.5,3472.2,0.005]
[1732373813234,2.88026,3471.9,3470.6,3.017]
[1732373813425,0.02875062,3471.8,3470.7,0.21255629]
[1732373813633,0.02875062,3471.8,3470.8,0.5696925]
[1732373813935,1.5866,3471.9,3470.9,0.21255629]
[1732373814233,2.88039,3471.8,3471.0,0.52555629]
[1732373814432,2.88039,3471.8,3471.0,0.313]
[1732373814433,3.0,3471.7,3471.0,0.313]
[1732373814617,5.88021,3472.0,3471.0,0.313]
[1732373814799,3.0,3471.8,3471.1,0.21245696]
[1732373814997,0.56100021,3471.6,3471.0,0.313]
[1732373815246,3.0,3472.4,3471.1,0.21245164]
[1732373815445,1.5853,3473.1,3471.6,3.33]
[1732373815755,0.57445456,3472.7,3471.7,0.21245164]
[1732373816092,1.5853,3473.1,3471.9,3.33]
[1732373816377,0.02875062,3473.0,3472.0,0.21245164]
[1732373816578,0.02875062,3473.0,3472.1,0.21245164]
[1732373816783,0.02875062,3473.0,3471.9,0.313]
[1732373816989,0.59947593,3473.0,3472.0,0.21219219]
[1732373817279,0.59947593,3473.0,3472.1,0.21219219]
[1732373817487,0.59947593,3473.0,3472.0,0.39068698]
[1732373817849,3.47882593,3473.0,3472.0,0.39068698]
[1732373818049,3.0,3472.9,3472.0,0.39068698]
[1732373818270,0.57072531,3473.0,3471.9,0.313]
[1732373819502,3.0,3472.6,3471.9,0.313]
[1732373819674,0.02875062,3472.5,3471.9,0.313]
[1732373820370,0.03106685,3472.8,3471.9,0.313]
[1732373820371,0.57072531,3473.0,3471.9,0.313]
[1732373821367,0.59947593,3473.0,3471.9,0.313]
[1732373822226,0.03106685,3473.9,3472.3,3.33]
[1732373822377,0.03106685,3473.9,3472.4,0.313]
[1732373822378,0.03106685,3473.3,3472.4,0.313]
[1732373823079,1.5331,3473.2,3472.4,0.313]
[1732373823425,2.91063685,3472.8,3471.9,0.313]
[1732373823723,0.02875062,3472.7,3471.9,0.313]
[1732373824011,0.03106685,3472.7,3471.9,0.313]
[1732373824171,0.02875062,3472.7,3471.9,0.313]
[1732373824376,0.5784076,3472.7,3471.9,0.313]
[1732373824700,0.05981747,3473.1,3471.9,0.313]
[1732373824918,2.10459689,3473.2,3472.0,0.21249807]
[1732373825207,0.58134018,3473.0,3472.1,0.21249807]
[1732373825374,0.58134018,3473.0,3471.9,0.34179549]
[1732373825580,0.58134018,3473.0,3472.0,0.33587955]
[1732373825809,0.58134018,3473.0,3472.0,0.36467504]
[1732373826110,0.02875062,3473.4,3472.1,0.863]
[1732373826278,0.03106685,3473.5,3472.2,0.34179266]
[1732373826490,0.59837666,3473.5,3472.4,0.313]
[1732373827483,12.8251315,3477.5,3472.6,3.88]
[1732373827484,0.03106685,3473.9,3472.6,3.88]
[1732373827754,0.03106685,3473.9,3472.1,0.55]
[1732373827755,0.03106685,3473.9,3472.9,0.313]
[1732373828023,0.03106685,3473.4,3472.3,0.313]
[1732373828224,2.87938,3473.0,3472.3,0.313]
[1732373828428,0.03106685,3472.8,3471.5,0.313]
[1732373829139,0.02875062,3472.8,3471.7,0.313]
[1732373829333,0.03106685,3472.8,3471.7,0.313]
[1732373829491,0.6276448,3472.8,3471.7,0.313]
[1732373829686,0.59889418,3472.8,3471.7,0.313]
[1732373830023,3.59889418,3472.8,3471.7,0.313]
[1732373830226,0.59889418,3472.8,3471.7,0.313]
[1732373830598,0.56782733,3472.8,3471.7,0.313]
[1732373830802,0.03106685,3472.8,3471.7,0.313]
[1732373831245,0.56867141,3473.1,3471.8,0.863]
[1732373831455,0.03106685,3473.9,3472.4,0.863]
[1732373831751,0.03106685,3474.6,3473.0,0.55]
[1732373832046,0.03106685,3474.6,3473.2,0.313]
[1732373832195,0.57269684,3474.2,3473.2,0.313]
[1732373832654,0.03106685,3473.5,3472.4,0.313]
[1732373832828,0.03106685,3473.1,3472.4,0.313]
[1732373833135,3.03106685,3473.1,3472.4,0.313]
[1732373833343,0.03106685,3472.8,3471.2,3.017]
[1732373833634,0.5617144,3472.8,3471.4,0.313]
[1732373833806,0.59278125,3472.8,3471.6,0.313]
[1732373834036,0.59278125,3472.8,3471.7,0.02879658]
[1732373834238,0.5617144,3472.8,3471.7,0.02879658]
[1732373834540,0.58334291,3473.7,3472.1,0.55]
[1732373834729,0.56401439,3473.5,3472.4,0.55]
[1732373834928,0.60473547,3473.9,3472.6,0.313]
[1732373835167,0.60473547,3473.9,3472.8,0.313]
[1732373835168,0.57366862,3473.9,3472.8,0.313]
[1732373835350,0.58137929,3473.6,3472.8,0.313]
[1732373835750,0.03106685,3473.8,3472.8,0.313]
[1732373837173,0.03106685,3474.0,3472.8,0.313]
[1732373837333,0.03106685,3474.1,3472.8,0.313]
[1732373837662,0.03106685,3474.1,3472.9,0.34178775]
[1732373837863,0.59294429,3474.3,3473.1,0.313]
[1732373838159,0.573848,3474.0,3473.2,0.34178461]
[1732373838362,0.573848,3474.0,3473.2,0.313]
[1732373839049,1.62581747,3473.9,3472.5,0.313]
[1732373839251,0.03106685,3473.7,3472.6,0.5787893]
[1732373839566,0.03106685,3473.7,3472.5,0.313]
[1732373839751,0.03106685,3473.6,3472.5,0.313]
[1732373839954,3.03106685,3473.6,3472.5,0.313]
[1732373841670,3.03106685,3473.6,3472.6,3.017]
[1732373841842,3.03106685,3473.6,3472.7,0.333]
[1732373842045,0.03106685,3473.6,3472.7,0.333]
[1732373843067,3.05981747,3473.6,3472.7,0.333]
[1732373843344,2.93873747,3473.6,3472.5,0.313]
[1732373843575,2.93873747,3473.6,3471.3,0.313]
[1732373843576,0.03106685,3471.8,3471.3,0.313]
[1732373843783,2.88026,3472.0,3471.3,0.313]
[1732373843784,0.03106685,3472.0,3471.3,0.313]
[1732373843943,0.03106685,3471.8,3471.3,0.313]
[1732373844142,0.03106685,3471.6,3470.9,0.313]
[1732373844475,3.03106685,3471.6,3470.9,0.313]
[1732373844646,3.0,3471.6,3470.9,0.313]
[1732373844844,0.03106685,3471.6,3470.9,0.313]
[1732373845783,0.03106685,3471.4,3469.9,3.017]
[1732373846080,0.05981747,3471.4,3470.0,0.0288093]
[1732373846283,3.0,3471.3,3470.2,3.017]
[1732373846445,0.03106685,3471.4,3470.2,3.04580931]
[1732373846750,0.03106685,3471.4,3470.2,0.02880931]
[1732373846969,0.03106685,3471.6,3470.3,0.313]
[1732373847143,0.03106685,3472.1,3470.6,0.45]
[1732373847351,0.03106685,3472.0,3470.8,0.313]
[1732373847688,0.03106685,3472.0,3471.0,0.313]
[1732373847855,0.03106685,3472.0,3471.1,0.02880051]
[1732373848179,0.03106685,3472.0,3471.0,0.34180052]
[1732373848754,0.03106685,3472.5,3471.0,0.34180052]
[1732373848944,2.91036685,3473.1,3471.2,0.313]
[1732373849144,0.60210831,3473.1,3471.6,0.313]
[1732373849345,0.56114172,3473.0,3471.8,0.313]
[1732373849646,0.03106685,3472.6,3471.4,0.02879345]
[1732373849946,2.91121685,3472.1,3471.3,0.313]
[1732373850163,2.90895062,3472.0,3471.3,0.313]
[1732373850365,2.88028,3471.9,3471.3,0.313]
[1732373850565,3.0,3471.9,3471.3,0.313]
[1732373850882,0.03106685,3472.1,3471.3,0.313]
[1732373851093,3.0,3471.9,3471.3,0.313]
[1732373851250,0.02875062,3471.9,3471.3,0.313]
[1732373851590,0.03106685,3472.1,3471.3,0.313]
[1732373854842,0.02875062,3472.3,3471.3,0.313]
[1732373854843,0.03106685,3471.8,3471.3,0.313]
[1732373855071,3.0,3471.3,3470.9,0.313]
[1732373855366,2.91217685,3470.9,3469.8,0.313]
[1732373855554,3.02875062,3470.8,3469.8,0.313]
[1732373855772,3.0,3470.6,3469.8,0.313]
[1732373855977,0.02875062,3470.5,3469.8,0.313]
[1732373856149,3.0,3470.6,3469.8,0.313]
[1732373856349,2.88145,3470.5,3469.8,0.313]
[1732373856577,3.57872579,3470.5,3469.8,0.313]
[1732373856887,3.0,3470.4,3469.8,0.313]
[1732373857391,3.0,3470.5,3469.8,0.313]
[1732373857576,5.88143,3470.5,3469.8,0.313]
[1732373858477,0.56935162,3470.6,3469.0,0.153368]
[1732373858478,0.03106685,3470.0,3469.4,0.02881704]
[1732373858679,0.03106685,3470.0,3469.1,0.313]
[1732373858983,0.03106685,3470.3,3469.2,0.0288212]
[1732373859185,2.4781326,3470.8,3469.3,0.313]
[1732373859186,0.41998585,3470.8,3469.3,0.313]
[1732373859390,0.41998585,3470.8,3469.5,0.313]
[1732373859391,0.57303228,3470.7,3469.5,0.313]
[1732373859594,3.0,3470.6,3469.5,0.34181353]
[1732373859895,0.03106685,3470.4,3469.5,0.313]
[1732373860396,0.03106685,3470.4,3469.5,0.283]
[1732373861100,0.05981747,3470.4,3469.5,0.283]
[1732373861301,3.0,3470.3,3469.5,0.283]
[1732373861455,2.94132747,3470.4,3469.5,0.283]
[1732373861456,0.03106685,3470.1,3469.5,0.283]
[1732373862005,0.03106685,3470.4,3469.5,0.283]
[1732373862289,0.03106685,3470.1,3469.5,0.283]
[1732373863393,0.03106685,3469.9,3469.1,0.283]
[1732373863579,0.03106685,3469.8,3469.1,0.283]
[1732373864413,0.03106685,3469.6,3469.1,0.283]
[1732373865365,0.03106685,3470.0,3469.1,0.283]
[1732373865696,0.03106685,3469.6,3469.1,0.283]
[1732373865993,0.03106685,3469.9,3469.1,0.26858]
[1732373866225,0.03106685,3469.8,3469.1,0.26858]
[1732373866901,0.03106685,3470.0,3469.1,0.26858]
[1732373867492,0.60911582,3470.1,3469.1,0.26858]
[1732373867662,0.03106685,3469.8,3469.1,0.26858]
[1732373868002,0.03106685,3469.8,3469.1,0.22858]
[1732373868701,0.03106685,3470.0,3469.1,3.27439949]
[1732373868999,0.03106685,3470.0,3469.3,3.017]
[1732373869387,0.05981747,3470.0,3469.1,0.22858]
[1732373870373,0.03106685,3469.8,3469.1,0.22858]
[1732373870562,0.03106685,3469.9,3469.2,3.017]
[1732373870996,0.60911582,3470.1,3469.2,3.017]
[1732373871185,0.03106685,3470.3,3469.4,3.017]
[1732373872123,0.05981747,3470.3,3469.2,0.0288161]
[1732373872280,0.03106685,3470.0,3469.1,0.22858]
[1732373872485,3.03106685,3470.0,3469.1,0.22858]
[1732373873025,0.03106685,3469.5,3469.1,0.22858]
[1732373873916,0.02875062,3470.0,3469.1,0.22858]
[1732373873917,0.03106685,3470.0,3469.1,0.22858]
[1732373874215,0.03106685,3470.0,3469.2,0.02882168]
[1732373874381,0.03106685,3470.0,3469.1,0.22858]
[1732373874584,0.55097423,3470.7,3469.8,0.2286]
[1732373874817,0.55097423,3470.7,3469.9,3.425373]
[1732373875118,0.388919,3470.8,3470.5,3.017]
[1732373875371,1.64436685,3471.6,3470.5,3.017]
[1732373875372,0.03106685,3471.4,3470.5,3.017]
[1732373875481,0.03106685,3471.4,3470.5,3.3444407]
[1732373875881,0.03106685,3471.4,3470.6,0.0288083]
[1732373876195,0.03106685,3471.4,3470.3,3.2456]
[1732373876583,0.03106685,3471.1,3470.3,0.2286]
[1732373877428,3.0,3470.8,3470.3,0.2286]
[1732373877722,3.0,3470.6,3469.5,0.2286]
[1732373877888,5.88139,3470.6,3469.5,0.2286]
[1732373878085,0.03106685,3470.2,3469.5,0.2286]
[1732373878302,2.91250685,3470.5,3469.5,0.2286]
[1732373878503,0.03106685,3470.2,3469.6,0.02881629]
[1732373879637,3.03106685,3470.4,3469.6,0.02881629]
[1732373879950,0.03106685,3470.2,3469.6,0.02881629]
[1732373880159,0.03106685,3470.2,3469.5,0.25741656]
[1732373880305,3.0,3470.7,3469.5,0.25741656]
[1732373880306,0.03106685,3470.5,3469.5,0.25741656]
[1732373880509,3.0,3470.7,3469.5,0.58485822]
[1732373880510,0.03106685,3470.2,3469.5,0.58485822]
[1732373880844,0.03106685,3470.5,3469.5,0.58485822]
[1732373881008,3.09396093,3470.7,3469.5,0.25741656]
[1732373881348,3.0,3470.9,3469.5,0.25741656]
[1732373881508,1.6133,3471.0,3469.7,3.017]
[1732373881711,1.6133,3471.0,3469.8,0.02881226]
[1732373881908,0.56715592,3471.1,3470.0,0.55]
[1732373882242,0.56715592,3471.1,3470.1,0.38244123]
[1732373883249,0.56715592,3471.1,3470.0,0.57881058]
[1732373883250,2.194775,3471.7,3470.4,0.55]
[1732373883557,2.90934062,3471.6,3470.4,0.57880708]
[1732373883702,2.90934062,3471.6,3470.4,3.59580708]
[1732373883703,0.02875062,3471.6,3470.4,3.59580708]
[1732373883909,0.02875062,3471.6,3470.8,0.00337256]
[1732373884136,0.56439408,3471.5,3470.8,0.00337256]
[1732373884348,2.88084,3471.2,3470.8,0.00337256]
[1732373884539,2.90975062,3471.1,3470.8,0.00337256]
[1732373884747,3.0,3471.0,3470.8,0.00337256]
[1732373885318,5.90984062,3470.9,3470.8,0.00337256]
[1732373885647,3.0,3470.9,3470.8,0.00337256]
[1732373885946,5.88085,3471.2,3470.8,0.00337256]
[1732373886142,3.0,3471.0,3470.8,0.00337256]
[1732373886549,3.0,3471.1,3470.8,0.00337256]
[1732373887040,3.44504408,3471.5,3470.8,0.00337256]
[1732373887041,3.0,3471.4,3470.8,0.00337256]
[1732373887242,3.0,3471.4,3470.8,0.23197256]
[1732373887408,0.56439408,3471.5,3470.8,0.23197256]
[1732373887608,4.52416,3471.8,3470.8,0.23197256]
[1732373887805,2.88036,3471.8,3470.8,0.23197256]
[1732373888633,4.44287,3472.1,3470.8,0.23197256]
[1732373888947,0.56639754,3471.7,3470.9,0.02880687]
[1732373889131,3.111543,3472.8,3470.9,0.02880687]
[1732373889132,0.56741151,3472.2,3470.9,0.02880687]
[1732373889442,1.5627,3472.5,3471.2,3.2456]
[1732373889646,2.87993,3472.4,3471.3,0.34584138]
[1732373889950,0.58802718,3472.2,3471.4,3.017]
[1732373890138,3.42893737,3472.7,3471.6,0.2286]
[1732373890309,0.54926737,3472.7,3471.8,3.017]
[1732373890510,0.02875062,3472.6,3471.6,3.2456]
[1732373890748,2.87995,3472.3,3471.6,0.2286]
[1732373890916,0.56461424,3472.6,3471.6,0.2286]
[1732373891346,2.87984,3472.5,3471.6,0.2286]
[1732373891655,3.0,3472.6,3471.7,0.55]
[1732373891814,5.87945,3472.9,3471.7,0.55]
[1732373892215,0.02875062,3472.8,3471.7,0.55]
[1732373892454,0.56145033,3472.7,3471.7,0.55]
[1732373894156,0.56145033,3472.7,3472.0,0.55]
[1732373894355,0.56145033,3472.7,3472.0,3.567]
[1732373894657,0.56145033,3472.7,3472.3,0.2286]
[1732373894816,3.45268061,3473.8,3472.5,0.2286]
[1732373895012,1.5246,3474.0,3472.8,0.55]
[1732373895214,2.8791,3473.3,3472.7,0.2286]
[1732373895441,2.8791,3473.3,3471.6,0.02878916]
[1732373895442,2.87938,3473.0,3471.6,0.2286]
[1732373895614,0.02875062,3472.9,3471.8,0.55]
[1732373895821,2.90820062,3472.9,3471.8,0.55]
[1732373896060,2.87953,3472.8,3471.8,0.55]
[1732373896254,3.0,3472.5,3471.7,0.25739491]
[1732373896546,3.0,3472.5,3471.7,0.2286]
[1732373897152,3.0,3472.8,3471.7,0.2286]
[1732373897317,5.87953,3472.8,3471.7,0.2286]
[1732373897517,0.57538318,3472.6,3471.8,0.55]
[1732373897736,0.57538318,3472.6,3471.7,0.2286]